[Event "Live Chess"]
[Site "Chess.com"]
[Date "2023.05.21"]
[Round "-"]
[White "trekker123"]
[Black "CeladonFish"]
[Result "1-0"]
[WhiteElo "2083"]
[BlackElo "1080"]
[TimeControl "300"]
[EndTime "23:55:24 PDT"]
[Termination "trekker123 won by resignation"]

1. d4 {[%clk 0:04:58]} 1... Nf6 {[%clk 0:04:58.4]} 2. Nf3 {[%clk 0:04:56]} 2...
g6 {[%clk 0:04:57.4]} 3. Nc3 {[%clk 0:04:54.2]} 3... Bg7 {[%clk 0:04:56.9]} 4.
e4 {[%clk 0:04:53.5]} 4... O-O {[%clk 0:04:55.6]} 5. e5 {[%clk 0:04:50]} 5...
Ng4 {[%clk 0:04:52]} 6. h3 {[%clk 0:04:47.8]} 6... Nh6 {[%clk 0:04:49.9]} 7. Bd3
{[%clk 0:04:40.7]} 7... d5 {[%clk 0:04:46.9]} 8. O-O {[%clk 0:04:32.3]} 8... f6
{[%clk 0:04:41.7]} 9. Re1 {[%clk 0:04:26.7]} 9... fxe5 {[%clk 0:04:39.9]} 10.
Nxe5 {[%clk 0:04:25.1]} 10... Nd7 {[%clk 0:04:35.3]} 11. Qe2 {[%clk 0:04:06.7]}
11... Nxe5 {[%clk 0:04:33]} 12. dxe5 {[%clk 0:04:05.1]} 12... c6 {[%clk
0:04:23.7]} 13. Bg5 {[%clk 0:03:59]} 13... Nf7 {[%clk 0:04:12.1]} 14. Bf4 {[%clk
0:03:54.7]} 14... Qb6 {[%clk 0:04:07.8]} 15. Rab1 {[%clk 0:03:44.4]} 15... Nd8
{[%clk 0:03:48.6]} 16. Bg5 {[%clk 0:03:35.4]} 16... Ne6 {[%clk 0:03:36.2]} 17.
Bxe7 {[%clk 0:03:26.3]} 17... Rf7 {[%clk 0:03:35.4]} 18. Bh4 {[%clk 0:03:10.7]}
18... Nd4 {[%clk 0:03:33.2]} 19. Qe3 {[%clk 0:03:03.1]} 19... Be6 {[%clk
0:03:02.6]} 20. Na4 {[%clk 0:02:46.8]} 20... Qd8 {[%clk 0:02:54.4]} 21. Bxd8
{[%clk 0:02:43.1]} 21... Rxd8 {[%clk 0:02:54.1]} 22. Qxd4 {[%clk 0:02:40.7]} 1-0

[Event "Live Chess"]
[Site "Chess.com"]
[Date "2023.05.21"]
[Round "-"]
[White "profpirate4"]
[Black "Ferrarifan27"]
[Result "0-1"]
[WhiteElo "1260"]
[BlackElo "2057"]
[TimeControl "300"]
[EndTime "23:55:28 PDT"]
[Termination "Ferrarifan27 won by resignation"]

1. d4 {[%clk 0:04:58.3]} 1... Nf6 {[%clk 0:04:58.7]} 2. c4 {[%clk 0:04:57.2]}
2... e6 {[%clk 0:04:57.9]} 3. Nc3 {[%clk 0:04:56.3]} 3... Bb4 {[%clk 0:04:56.8]}
4. f3 {[%clk 0:04:46.2]} 4... d5 {[%clk 0:04:49.8]} 5. cxd5 {[%clk 0:04:42.9]}
5... exd5 {[%clk 0:04:48]} 6. e3 {[%clk 0:04:35.2]} 6... O-O {[%clk 0:04:46.5]}
7. Bd3 {[%clk 0:04:33.6]} 7... Re8 {[%clk 0:04:42.9]} 8. Qc2 {[%clk 0:04:30.6]}
8... Nc6 {[%clk 0:04:38.3]} 9. Ne2 {[%clk 0:04:26.6]} 9... Bd6 {[%clk
0:04:25.4]} 10. O-O {[%clk 0:04:22.8]} 10... Nb4 {[%clk 0:04:23.9]} 11. Qd1
{[%clk 0:04:11.7]} 11... Nxd3 {[%clk 0:04:22.9]} 12. Qxd3 {[%clk 0:04:10.7]}
12... c6 {[%clk 0:04:22.2]} 13. Ng3 {[%clk 0:04:07.7]} 13... Bxg3 {[%clk
0:04:18.2]} 14. hxg3 {[%clk 0:04:06.3]} 14... Qc7 {[%clk 0:04:17.5]} 15. Kf2
{[%clk 0:03:57.7]} 15... g6 {[%clk 0:04:08.7]} 16. Bd2 {[%clk 0:03:52]} 16...
Bf5 {[%clk 0:04:06.4]} 17. Qe2 {[%clk 0:03:50.2]} 17... Nh5 {[%clk 0:03:54]} 18.
f4 {[%clk 0:03:46.6]} 18... Nf6 {[%clk 0:03:51.4]} 19. Ke1 {[%clk 0:03:25.2]}
19... Bg4 {[%clk 0:03:43]} 20. Qf2 {[%clk 0:03:17.8]} 20... Ne4 {[%clk
0:03:41.2]} 21. Nxe4 {[%clk 0:03:16.6]} 21... Rxe4 {[%clk 0:03:41.1]} 22. Rh1
{[%clk 0:03:02.1]} 22... Rae8 {[%clk 0:03:37.7]} 23. Rh4 {[%clk 0:02:56.5]}
23... h5 {[%clk 0:03:35.8]} 24. a4 {[%clk 0:02:30.7]} 24... Rxd4 {[%clk
0:03:34.3]} 25. Bc3 {[%clk 0:02:21.8]} 25... Rde4 {[%clk 0:03:28.3]} 26. Kd2
{[%clk 0:02:17.9]} 26... Rxe3 {[%clk 0:03:26.7]} 27. Qxe3 {[%clk 0:02:16.5]}
27... Rxe3 {[%clk 0:03:26.6]} 28. Kxe3 {[%clk 0:02:15.8]} 28... c5 {[%clk
0:03:14.7]} 29. Be5 {[%clk 0:02:07.8]} 29... d4+ {[%clk 0:03:13.1]} 30. Kd2
{[%clk 0:02:04.4]} 30... Qa5+ {[%clk 0:03:11.5]} 31. Kc2 {[%clk 0:01:56.4]}
31... Bf5+ {[%clk 0:03:09.8]} 32. Kd1 {[%clk 0:01:51.9]} 32... Qb4 {[%clk
0:03:05.5]} 33. Rb1 {[%clk 0:01:39.1]} 33... Bxb1 {[%clk 0:03:02.8]} 0-1

[Event "Live Chess"]
[Site "Chess.com"]
[Date "2023.05.21"]
[Round "-"]
[White "diana21strabt"]
[Black "Ian-Morley"]
[Result "1-0"]
[WhiteElo "1717"]
[BlackElo "1028"]
[TimeControl "300"]
[EndTime "23:55:40 PDT"]
[Termination "diana21strabt won by resignation"]

1. e4 {[%clk 0:04:58.9]} 1... d5 {[%clk 0:04:59]} 2. exd5 {[%clk 0:04:57.8]}
2... Qxd5 {[%clk 0:04:58.3]} 3. Nc3 {[%clk 0:04:57]} 3... Qd8 {[%clk 0:04:57.4]}
4. Nf3 {[%clk 0:04:55.3]} 4... Nf6 {[%clk 0:04:56.9]} 5. Bc4 {[%clk 0:04:54.4]}
5... e6 {[%clk 0:04:56]} 6. O-O {[%clk 0:04:53.3]} 6... c6 {[%clk 0:04:54.6]} 7.
d3 {[%clk 0:04:52.2]} 7... Nbd7 {[%clk 0:04:53.4]} 8. Bg5 {[%clk 0:04:50.8]}
8... Be7 {[%clk 0:04:52]} 9. Qe2 {[%clk 0:04:49.1]} 9... h6 {[%clk 0:04:51.4]}
10. Bxf6 {[%clk 0:04:47.9]} 10... Bxf6 {[%clk 0:04:50.6]} 11. Ne4 {[%clk
0:04:45.9]} 11... Ne5 {[%clk 0:04:48.3]} 12. Nxe5 {[%clk 0:04:43.2]} 12... Bxe5
{[%clk 0:04:47.3]} 13. c3 {[%clk 0:04:41.3]} 13... b5 {[%clk 0:04:44.2]} 14. Bb3
{[%clk 0:04:40.1]} 14... a5 {[%clk 0:04:43.2]} 15. d4 {[%clk 0:04:38.7]} 15...
a4 {[%clk 0:04:41.7]} 16. dxe5 {[%clk 0:04:32.2]} 16... axb3 {[%clk 0:04:40.6]}
17. axb3 {[%clk 0:04:31.1]} 17... Rxa1 {[%clk 0:04:39.4]} 18. Rxa1 {[%clk
0:04:29.6]} 18... O-O {[%clk 0:04:38.7]} 19. Qd2 {[%clk 0:04:26.8]} 19... Qxd2
{[%clk 0:04:37.4]} 20. Nxd2 {[%clk 0:04:25.8]} 20... Rd8 {[%clk 0:04:36.7]} 21.
Nf3 {[%clk 0:04:23]} 21... Bb7 {[%clk 0:04:33.9]} 22. h3 {[%clk 0:04:21.6]}
22... c5 {[%clk 0:04:33.1]} 23. Ra5 {[%clk 0:04:07.5]} 23... Bxf3 {[%clk
0:04:31.4]} 24. gxf3 {[%clk 0:04:06.4]} 24... Rb8 {[%clk 0:04:30.4]} 25. Kf1
{[%clk 0:04:03.4]} 25... c4 {[%clk 0:04:29.1]} 26. b4 {[%clk 0:03:59.6]} 26...
Kf8 {[%clk 0:04:26.9]} 27. Ke2 {[%clk 0:03:58.5]} 27... Ke7 {[%clk 0:04:25.3]}
28. Ke3 {[%clk 0:03:58]} 28... f6 {[%clk 0:04:24.6]} 29. f4 {[%clk 0:03:56.4]}
29... fxe5 {[%clk 0:04:23.7]} 30. fxe5 {[%clk 0:03:55.5]} 30... g5 {[%clk
0:04:23.2]} 31. f3 {[%clk 0:03:52.7]} 31... Kf7 {[%clk 0:04:22.5]} 32. Kd4
{[%clk 0:03:51.5]} 32... Kg6 {[%clk 0:04:21.9]} 33. Kc5 {[%clk 0:03:48.8]} 33...
h5 {[%clk 0:04:20.3]} 34. Rxb5 {[%clk 0:03:47.1]} 34... Rc8+ {[%clk 0:04:19.4]}
35. Kd4 {[%clk 0:03:45.1]} 35... g4 {[%clk 0:04:15.9]} 36. fxg4 {[%clk
0:03:42.3]} 36... hxg4 {[%clk 0:04:15.1]} 37. hxg4 {[%clk 0:03:41.3]} 37... Kg5
{[%clk 0:04:14.6]} 38. Rc5 {[%clk 0:03:40.3]} 38... Kxg4 {[%clk 0:04:13.2]} 39.
Rxc8 {[%clk 0:03:38.8]} 1-0

[Event "Live Chess"]
[Site "Chess.com"]
[Date "2023.05.21"]
[Round "-"]
[White "martynstanley"]
[Black "Nazar_777"]
[Result "0-1"]
[WhiteElo "988"]
[BlackElo "1602"]
[TimeControl "300"]
[EndTime "23:55:53 PDT"]
[Termination "Nazar_777 won by checkmate"]

1. d4 {[%clk 0:04:57.9]} 1... e6 {[%clk 0:04:55.6]} 2. e3 {[%clk 0:04:57.3]}
2... a6 {[%clk 0:04:54.9]} 3. Bd3 {[%clk 0:04:56.6]} 3... h5 {[%clk 0:04:54.3]}
4. c3 {[%clk 0:04:55.7]} 4... c5 {[%clk 0:04:53.7]} 5. f4 {[%clk 0:04:54.9]}
5... cxd4 {[%clk 0:04:52.9]} 6. exd4 {[%clk 0:04:54.2]} 6... Nf6 {[%clk
0:04:52.3]} 7. Nf3 {[%clk 0:04:53.5]} 7... Be7 {[%clk 0:04:51.6]} 8. O-O {[%clk
0:04:52.7]} 8... Qc7 {[%clk 0:04:51.1]} 9. Ne5 {[%clk 0:04:51.9]} 9... Nc6
{[%clk 0:04:50.5]} 10. Rf3 {[%clk 0:04:48.2]} 10... Nxe5 {[%clk 0:04:48.6]} 11.
fxe5 {[%clk 0:04:47]} 11... Ng4 {[%clk 0:04:47.8]} 12. Rh3 {[%clk 0:04:44.1]}
12... b5 {[%clk 0:04:46.5]} 13. Be2 {[%clk 0:04:42.4]} 13... Bb7 {[%clk
0:04:44.7]} 14. Bxg4 {[%clk 0:04:41.1]} 14... O-O-O {[%clk 0:04:37.4]} 15. Bf3
{[%clk 0:04:39.5]} 15... g5 {[%clk 0:04:35.8]} 16. Bxg5 {[%clk 0:04:34.1]} 16...
Bxg5 {[%clk 0:04:33.4]} 17. Bxh5 {[%clk 0:04:31.1]} 17... Bd5 {[%clk 0:04:26.4]}
18. Nd2 {[%clk 0:04:29.3]} 18... Qc6 {[%clk 0:04:24.5]} 19. Nf3 {[%clk
0:04:27.2]} 19... Rdg8 {[%clk 0:04:21.5]} 20. Qe2 {[%clk 0:04:24.1]} 20... Rh6
{[%clk 0:04:16.2]} 21. Nxg5 {[%clk 0:04:21.1]} 21... Rxg5 {[%clk 0:04:13.5]} 22.
Rg3 {[%clk 0:04:20.3]} 22... Rhxh5 {[%clk 0:04:08.2]} 23. Rxg5 {[%clk
0:04:18.3]} 23... Rxg5 {[%clk 0:04:07]} 24. g3 {[%clk 0:04:17.1]} 24... Kc7
{[%clk 0:04:00.7]} 25. Qf2 {[%clk 0:04:15]} 25... Rf5 {[%clk 0:03:50.8]} 26. Qe2
{[%clk 0:03:58.7]} 26... Bh1 {[%clk 0:03:48.7]} 27. Rf1 {[%clk 0:03:56]} 27...
Rxf1+ {[%clk 0:03:42.5]} 28. Qxf1 {[%clk 0:03:54.7]} 28... a5 {[%clk 0:03:37.2]}
29. Qf2 {[%clk 0:03:53.7]} 29... b4 {[%clk 0:03:33.9]} 30. Kf1 {[%clk 0:03:48]}
30... Bf3 {[%clk 0:03:30.6]} 31. h4 {[%clk 0:03:44.3]} 31... bxc3 {[%clk
0:03:28.3]} 32. bxc3 {[%clk 0:03:42.9]} 32... Bh5 {[%clk 0:03:26.7]} 33. Ke1
{[%clk 0:03:40.6]} 33... Qxc3+ {[%clk 0:03:25.1]} 34. Qd2 {[%clk 0:03:39.1]}
34... Qa1+ {[%clk 0:03:17.8]} 35. Kf2 {[%clk 0:03:33.4]} 35... Qb1 {[%clk
0:02:45.9]} 36. Qxa5+ {[%clk 0:03:30.7]} 36... Qb6 {[%clk 0:02:42.3]} 37. Qxb6+
{[%clk 0:03:27.8]} 37... Kxb6 {[%clk 0:02:41.1]} 38. Ke3 {[%clk 0:03:26.7]}
38... Kb5 {[%clk 0:02:40.2]} 39. Kd3 {[%clk 0:03:26]} 39... Kc6 {[%clk
0:02:37.2]} 40. Kc4 {[%clk 0:03:24.5]} 40... d6 {[%clk 0:02:36]} 41. exd6 {[%clk
0:03:22.1]} 41... Kxd6 {[%clk 0:02:34.8]} 42. a4 {[%clk 0:03:21.2]} 42... f5
{[%clk 0:02:32.3]} 43. a5 {[%clk 0:03:19.8]} 43... Kc6 {[%clk 0:02:27.6]} 44. a6
{[%clk 0:03:15.6]} 44... Be2+ {[%clk 0:02:25.9]} 45. Kc3 {[%clk 0:03:12.8]}
45... Bxa6 {[%clk 0:02:23.1]} 46. Kd2 {[%clk 0:03:11.8]} 46... Kd6 {[%clk
0:02:12]} 47. Ke3 {[%clk 0:03:10.8]} 47... Ke7 {[%clk 0:02:10.9]} 48. Kf4 {[%clk
0:03:07.6]} 48... Kf6 {[%clk 0:02:09.4]} 49. g4 {[%clk 0:03:05.3]} 49... Bd3
{[%clk 0:02:05.9]} 50. g5+ {[%clk 0:03:02.2]} 50... Ke7 {[%clk 0:02:03.7]} 51.
h5 {[%clk 0:03:01.3]} 51... Be2 {[%clk 0:02:01.3]} 52. h6 {[%clk 0:03:00.3]}
52... Kf7 {[%clk 0:01:59.9]} 53. Ke5 {[%clk 0:02:57.2]} 53... Bh5 {[%clk
0:01:55.7]} 54. d5 {[%clk 0:02:54.5]} 54... exd5 {[%clk 0:01:48]} 55. Kxf5
{[%clk 0:02:53]} 55... Bg6+ {[%clk 0:01:33.4]} 56. Ke5 {[%clk 0:02:50.9]} 56...
Be4 {[%clk 0:01:29.7]} 57. Kf4 {[%clk 0:02:46.2]} 57... Kg6 {[%clk 0:01:27.8]}
58. Kg4 {[%clk 0:02:44.2]} 58... Bf5+ {[%clk 0:01:26.4]} 59. Kf4 {[%clk
0:02:43.2]} 59... d4 {[%clk 0:01:24.5]} 60. Kf3 {[%clk 0:02:35.3]} 60... Kxg5
{[%clk 0:01:23.1]} 61. h7 {[%clk 0:02:34.6]} 61... Bxh7 {[%clk 0:01:21.2]} 62.
Ke2 {[%clk 0:02:32.7]} 62... d3+ {[%clk 0:01:19.5]} 63. Kd2 {[%clk 0:02:31.9]}
63... Kf4 {[%clk 0:01:18.5]} 64. Kd1 {[%clk 0:02:31.1]} 64... Ke3 {[%clk
0:01:17.4]} 65. Ke1 {[%clk 0:02:30.1]} 65... d2+ {[%clk 0:01:15.1]} 66. Kd1
{[%clk 0:02:29.3]} 66... Bc2+ {[%clk 0:01:05.9]} 67. Kxc2 {[%clk 0:02:25.7]}
67... Ke2 {[%clk 0:01:04.9]} 68. Kc3 {[%clk 0:02:24.1]} 68... d1=Q {[%clk
0:01:03.2]} 69. Kc4 {[%clk 0:02:23.6]} 69... Ke3 {[%clk 0:00:59.8]} 70. Kc5
{[%clk 0:02:22.4]} 70... Ke4 {[%clk 0:00:57.9]} 71. Kb6 {[%clk 0:02:20.6]} 71...
Qc2 {[%clk 0:00:55.8]} 72. Kb7 {[%clk 0:02:19.3]} 72... Kd5 {[%clk 0:00:54.7]}
73. Kb6 {[%clk 0:02:16.8]} 73... Qc5+ {[%clk 0:00:53]} 74. Ka6 {[%clk
0:02:13.3]} 74... Qb4 {[%clk 0:00:51.2]} 75. Ka7 {[%clk 0:02:11.7]} 75... Kc6
{[%clk 0:00:50.1]} 76. Ka8 {[%clk 0:02:09.5]} 76... Qb7# {[%clk 0:00:48.7]} 0-1

[Event "Live Chess"]
[Site "Chess.com"]
[Date "2023.05.21"]
[Round "-"]
[White "chessfiction"]
[Black "Mugzwang"]
[Result "1-0"]
[WhiteElo "2347"]
[BlackElo "1559"]
[TimeControl "300"]
[EndTime "23:55:56 PDT"]
[Termination "chessfiction won by resignation"]

1. e4 {[%clk 0:04:59.2]} 1... c5 {[%clk 0:04:54.5]} 2. d4 {[%clk 0:04:59.1]}
2... cxd4 {[%clk 0:04:52.8]} 3. c3 {[%clk 0:04:59]} 3... Nf6 {[%clk 0:04:50.2]}
4. e5 {[%clk 0:04:58]} 4... Nd5 {[%clk 0:04:49.2]} 5. Bc4 {[%clk 0:04:57.5]}
5... Nb6 {[%clk 0:04:42.8]} 6. Bb3 {[%clk 0:04:56.5]} 6... Nc6 {[%clk
0:04:36.4]} 7. Nf3 {[%clk 0:04:54.8]} 7... e6 {[%clk 0:04:18.3]} 8. O-O {[%clk
0:04:53.7]} 8... d6 {[%clk 0:04:17.2]} 9. exd6 {[%clk 0:04:51.3]} 9... Bxd6
{[%clk 0:04:15.5]} 10. Bg5 {[%clk 0:04:49]} 10... Qc7 {[%clk 0:04:09.3]} 11. Na3
{[%clk 0:04:46.5]} 11... a6 {[%clk 0:04:04]} 12. cxd4 {[%clk 0:04:44]} 12... O-O
{[%clk 0:04:00.9]} 13. Rc1 {[%clk 0:04:42.9]} 13... Be7 {[%clk 0:03:50.8]} 14.
Qd3 {[%clk 0:04:39]} 14... Bxg5 {[%clk 0:03:47.7]} 15. Nxg5 {[%clk 0:04:38.9]}
15... f5 {[%clk 0:03:19.5]} 16. Qh3 {[%clk 0:04:27.2]} 16... g6 {[%clk
0:03:09.1]} 17. Bxe6+ {[%clk 0:04:23.5]} 17... Kh8 {[%clk 0:02:34.5]} 18. d5
{[%clk 0:04:16.8]} 18... Qe7 {[%clk 0:02:23.9]} 19. Nf7+ {[%clk 0:04:06.5]}
19... Rxf7 {[%clk 0:02:18.8]} 20. Bxf7 {[%clk 0:04:05.3]} 20... Qxf7 {[%clk
0:02:17.7]} 21. dxc6 {[%clk 0:04:04.7]} 21... bxc6 {[%clk 0:02:17.2]} 22. Rxc6
{[%clk 0:04:02.8]} 22... Nd5 {[%clk 0:02:01.5]} 23. Nc4 {[%clk 0:03:49.2]} 23...
Bb7 {[%clk 0:01:52.6]} 24. Ne5 {[%clk 0:03:48.3]} 24... Qg7 {[%clk 0:01:13.8]}
25. Nxg6+ {[%clk 0:03:44]} 25... Kg8 {[%clk 0:01:09.3]} 26. Qxf5 {[%clk
0:03:33.2]} 26... Bxc6 {[%clk 0:01:03.3]} 27. Qe6+ {[%clk 0:03:32.2]} 27... Qf7
{[%clk 0:00:51.8]} 28. Qxc6 {[%clk 0:03:30.1]} 28... Rd8 {[%clk 0:00:39.8]} 29.
Ne5 {[%clk 0:03:25.7]} 29... Qg7 {[%clk 0:00:31.7]} 30. Qe6+ {[%clk 0:03:22.5]}
30... Kh8 {[%clk 0:00:24.1]} 31. Nf7+ {[%clk 0:03:21.4]} 31... Kg8 {[%clk
0:00:21.8]} 32. Nxd8+ {[%clk 0:03:20.6]} 1-0

[Event "Live Chess"]
[Site "Chess.com"]
[Date "2023.05.21"]
[Round "-"]
[White "hturner40"]
[Black "elephantgerrald"]
[Result "1-0"]
[WhiteElo "1787"]
[BlackElo "613"]
[TimeControl "300"]
[EndTime "23:56:24 PDT"]
[Termination "hturner40 won by checkmate"]

1. Nf3 {[%clk 0:04:55.9]} 1... d5 {[%clk 0:04:58.6]} 2. g3 {[%clk 0:04:54.2]}
2... Bg4 {[%clk 0:04:57.1]} 3. c4 {[%clk 0:04:46.5]} 3... dxc4 {[%clk
0:04:54.9]} 4. Bg2 {[%clk 0:04:41.1]} 4... Bxf3 {[%clk 0:04:49.9]} 5. Bxf3
{[%clk 0:04:39.2]} 5... Nf6 {[%clk 0:04:48.4]} 6. Qa4+ {[%clk 0:04:36.7]} 6...
c6 {[%clk 0:04:45.6]} 7. Qxc4 {[%clk 0:04:35.3]} 7... Nbd7 {[%clk 0:04:41.4]} 8.
d4 {[%clk 0:04:33.4]} 8... b5 {[%clk 0:04:39.3]} 9. Qb3 {[%clk 0:04:02.4]} 9...
Qa5+ {[%clk 0:04:34.1]} 10. Bd2 {[%clk 0:03:59.3]} 10... Qc7 {[%clk 0:04:30.3]}
11. Nc3 {[%clk 0:03:49]} 11... e6 {[%clk 0:04:27.3]} 12. Rc1 {[%clk 0:03:36.5]}
12... Be7 {[%clk 0:04:25.1]} 13. Nxb5 {[%clk 0:03:29.6]} 13... Qc8 {[%clk
0:04:16.9]} 14. Rxc6 {[%clk 0:03:20.3]} 14... Qb7 {[%clk 0:04:12]} 15. Nc7+
{[%clk 0:03:13]} 15... Qxc7 {[%clk 0:04:09.8]} 16. Rxc7 {[%clk 0:03:10.3]} 16...
O-O {[%clk 0:04:08.3]} 17. Bxa8 {[%clk 0:03:05.2]} 17... Bd6 {[%clk 0:04:04.7]}
18. Rxa7 {[%clk 0:02:57.2]} 18... e5 {[%clk 0:03:58.3]} 19. dxe5 {[%clk
0:02:39]} 19... Nxe5 {[%clk 0:03:56.1]} 20. O-O {[%clk 0:02:37.6]} 20... Bc5
{[%clk 0:03:48.5]} 21. Ra5 {[%clk 0:02:29.6]} 21... Bd6 {[%clk 0:03:44.5]} 22.
Bd5 {[%clk 0:02:22.8]} 22... h6 {[%clk 0:03:34.6]} 23. Ra7 {[%clk 0:02:16.5]}
23... Nxd5 {[%clk 0:03:23]} 24. Qxd5 {[%clk 0:02:13.5]} 24... Bb8 {[%clk
0:03:19.7]} 25. Re7 {[%clk 0:02:07]} 25... Ng6 {[%clk 0:03:01.2]} 26. Rb7 {[%clk
0:02:04.4]} 26... Be5 {[%clk 0:02:45.7]} 27. Bb4 {[%clk 0:01:59.5]} 27... Re8
{[%clk 0:02:36.5]} 28. Qxf7+ {[%clk 0:01:55.2]} 28... Kh7 {[%clk 0:02:35.1]} 29.
Qxe8 {[%clk 0:01:53.1]} 29... Bxg3 {[%clk 0:02:32.9]} 30. hxg3 {[%clk
0:01:50.8]} 30... h5 {[%clk 0:02:26.1]} 31. Qf7 {[%clk 0:01:48.6]} 31... Kh6
{[%clk 0:02:24.4]} 32. Bd2+ {[%clk 0:01:46.7]} 32... Kh7 {[%clk 0:02:20.3]} 33.
Qxg7# {[%clk 0:01:44.5]} 1-0

[Event "Live Chess"]
[Site "Chess.com"]
[Date "2023.05.21"]
[Round "-"]
[White "nigelst"]
[Black "jbooth"]
[Result "0-1"]
[WhiteElo "1700"]
[BlackElo "1716"]
[TimeControl "300"]
[EndTime "23:56:28 PDT"]
[Termination "jbooth won on time"]

1. e4 {[%clk 0:04:54.8]} 1... d6 {[%clk 0:04:58.6]} 2. d4 {[%clk 0:04:51.9]}
2... Nf6 {[%clk 0:04:58]} 3. Nc3 {[%clk 0:04:50.5]} 3... Nbd7 {[%clk 0:04:56.6]}
4. Nf3 {[%clk 0:04:48.1]} 4... e5 {[%clk 0:04:55.5]} 5. dxe5 {[%clk 0:04:46.6]}
5... dxe5 {[%clk 0:04:54]} 6. Bd3 {[%clk 0:04:44.9]} 6... c6 {[%clk 0:04:53.2]}
7. Bg5 {[%clk 0:04:42.8]} 7... h6 {[%clk 0:04:50.7]} 8. Bh4 {[%clk 0:04:41.4]}
8... Qc7 {[%clk 0:04:46.4]} 9. Bg3 {[%clk 0:04:39.7]} 9... g5 {[%clk 0:04:30.3]}
10. h4 {[%clk 0:04:34.5]} 10... g4 {[%clk 0:04:26.5]} 11. Nh2 {[%clk 0:04:30.2]}
11... h5 {[%clk 0:04:25.2]} 12. Nf1 {[%clk 0:04:28.5]} 12... Nc5 {[%clk
0:04:20]} 13. Ne3 {[%clk 0:04:26]} 13... Nxd3+ {[%clk 0:04:15.4]} 14. Qxd3
{[%clk 0:04:24.4]} 14... Be6 {[%clk 0:04:11.4]} 15. O-O-O {[%clk 0:04:21.6]}
15... Be7 {[%clk 0:04:04.2]} 16. Nc4 {[%clk 0:04:20.1]} 16... Bxc4 {[%clk
0:03:59.5]} 17. Qxc4 {[%clk 0:04:18.6]} 17... O-O {[%clk 0:03:53.7]} 18. Qe2
{[%clk 0:04:14]} 18... Rad8 {[%clk 0:03:45.9]} 19. Qe3 {[%clk 0:04:10.3]} 19...
Kh7 {[%clk 0:03:24.1]} 20. Qg5 {[%clk 0:04:07]} 20... Rg8 {[%clk 0:03:19.9]} 21.
Qf5+ {[%clk 0:04:01.8]} 21... Rg6 {[%clk 0:03:10.8]} 22. Bxe5 {[%clk 0:03:59.2]}
22... Qa5 {[%clk 0:03:03.6]} 23. Bxf6 {[%clk 0:03:47]} 23... Qxf5 {[%clk
0:03:01.5]} 24. exf5 {[%clk 0:03:44.3]} 24... Rxf6 {[%clk 0:02:59.3]} 25. Rhe1
{[%clk 0:03:37.5]} 25... Rxd1+ {[%clk 0:02:56]} 26. Nxd1 {[%clk 0:03:25]} 26...
Bc5 {[%clk 0:02:52.6]} 27. Re5 {[%clk 0:03:10.9]} 27... Bd6 {[%clk 0:02:47.6]}
28. Ra5 {[%clk 0:03:05.6]} 28... Bb8 {[%clk 0:02:39.2]} 29. Ne3 {[%clk
0:03:02.7]} 29... b6 {[%clk 0:02:37.4]} 30. Ra4 {[%clk 0:02:58.1]} 30... a5
{[%clk 0:02:32]} 31. Re4 {[%clk 0:02:54.4]} 31... Bd6 {[%clk 0:02:25.7]} 32. Rc4
{[%clk 0:02:32.1]} 32... Bc5 {[%clk 0:02:22.6]} 33. Rf4 {[%clk 0:02:19.2]} 33...
Kg7 {[%clk 0:02:14.3]} 34. g3 {[%clk 0:02:14.9]} 34... Rd6 {[%clk 0:02:07.1]}
35. Nc4 {[%clk 0:02:06.7]} 35... Rd4 {[%clk 0:01:58.2]} 36. f6+ {[%clk
0:01:58.2]} 36... Kg6 {[%clk 0:01:55.2]} 37. Ne5+ {[%clk 0:01:55.8]} 37... Kh7
{[%clk 0:01:50.6]} 38. Nxf7 {[%clk 0:01:51.9]} 38... Rxf4 {[%clk 0:01:46.8]} 39.
gxf4 {[%clk 0:01:49.6]} 39... Bxf2 {[%clk 0:01:43.6]} 40. Ng5+ {[%clk
0:01:46.1]} 40... Kg6 {[%clk 0:01:41.8]} 41. f5+ {[%clk 0:01:39.9]} 41... Kxf5
{[%clk 0:01:38.8]} 42. f7 {[%clk 0:01:38.8]} 42... Bc5 {[%clk 0:01:37.4]} 43.
Kd2 {[%clk 0:01:31.2]} 43... Be7 {[%clk 0:01:13.7]} 44. Ke2 {[%clk 0:01:23.5]}
44... Kf4 {[%clk 0:01:08.3]} 45. Kf2 {[%clk 0:01:05.4]} 45... g3+ {[%clk
0:01:05.8]} 46. Kg2 {[%clk 0:01:03.7]} 46... Kg4 {[%clk 0:01:03.2]} 47. Ne6
{[%clk 0:00:40.6]} 47... Kxh4 {[%clk 0:01:00.6]} 48. f8=Q {[%clk 0:00:32.5]}
48... Bxf8 {[%clk 0:00:59.9]} 49. Nxf8 {[%clk 0:00:31.6]} 49... Kg4 {[%clk
0:00:58.9]} 50. Ng6 {[%clk 0:00:22.6]} 50... Kg5 {[%clk 0:00:56.7]} 51. Ne5
{[%clk 0:00:20.1]} 51... h4 {[%clk 0:00:53]} 52. Nxc6 {[%clk 0:00:18.6]} 52...
Kg4 {[%clk 0:00:51.5]} 53. Ne5+ {[%clk 0:00:17.2]} 53... Kf4 {[%clk 0:00:49.1]}
54. Nd3+ {[%clk 0:00:15.8]} 54... Kg4 {[%clk 0:00:47.1]} 55. Ne5+ {[%clk
0:00:14.8]} 55... Kf4 {[%clk 0:00:45.9]} 56. Nd3+ {[%clk 0:00:13.3]} 56... Ke3
{[%clk 0:00:43.2]} 57. Ne5 {[%clk 0:00:10.8]} 57... Kd2 {[%clk 0:00:41.2]} 58.
c4 {[%clk 0:00:08.4]} 58... Kc2 {[%clk 0:00:39.1]} 59. a3 {[%clk 0:00:04.6]}
59... Kxb2 {[%clk 0:00:37.6]} 60. Nd7 {[%clk 0:00:03.5]} 60... Kxa3 {[%clk
0:00:34.8]} 61. Nxb6 {[%clk 0:00:02.3]} 61... Kb4 {[%clk 0:00:34.1]} 62. Kh3
{[%clk 0:00:00.4]} 62... a4 {[%clk 0:00:30]} 0-1

[Event "Live Chess"]
[Site "Chess.com"]
[Date "2023.05.21"]
[Round "-"]
[White "Hacker_2009"]
[Black "LutherSullivan"]
[Result "1-0"]
[WhiteElo "1952"]
[BlackElo "2151"]
[TimeControl "300"]
[EndTime "23:56:40 PDT"]
[Termination "Hacker_2009 won by resignation"]

1. d4 {[%clk 0:04:58.5]} 1... Nf6 {[%clk 0:04:57.9]} 2. Nf3 {[%clk 0:04:57.6]}
2... g6 {[%clk 0:04:57.5]} 3. c4 {[%clk 0:04:55.5]} 3... Bg7 {[%clk 0:04:57.1]}
4. Nc3 {[%clk 0:04:53.6]} 4... d5 {[%clk 0:04:56.1]} 5. e3 {[%clk 0:04:52.4]}
5... O-O {[%clk 0:04:53.8]} 6. Qb3 {[%clk 0:04:51.1]} 6... c6 {[%clk 0:04:51.4]}
7. Be2 {[%clk 0:04:48.5]} 7... a5 {[%clk 0:04:50.4]} 8. O-O {[%clk 0:04:46.9]}
8... Na6 {[%clk 0:04:49.3]} 9. a3 {[%clk 0:04:41.9]} 9... Be6 {[%clk 0:04:32.5]}
10. Qxb7 {[%clk 0:04:36.4]} 10... dxc4 {[%clk 0:04:29.9]} 11. Ne5 {[%clk
0:04:31.5]} 11... Qc8 {[%clk 0:04:12.6]} 12. Qxc6 {[%clk 0:04:22.8]} 12... Rb8
{[%clk 0:03:35.4]} 13. d5 {[%clk 0:03:59.3]} 13... Nxd5 {[%clk 0:03:29.4]} 14.
Nxd5 {[%clk 0:03:53.8]} 14... Bxd5 {[%clk 0:03:21.9]} 15. Qxd5 {[%clk 0:03:51]}
15... Nc7 {[%clk 0:03:15.9]} 16. Qe4 {[%clk 0:03:47.6]} 16... Qe6 {[%clk
0:03:11.9]} 17. f4 {[%clk 0:03:42.4]} 17... f6 {[%clk 0:03:09.1]} 18. Bxc4
{[%clk 0:03:41.1]} 1-0